fUSD/lending_fUSD_20240218
["ID","MTS","AMOUNT","RATE_DAILY","PERIOD"]
[314394230,1708272632659,-505.24709433,0.00034831,2]
[314394231,1708272632669,-198.05,0.00034873,2]
[314394232,1708272632679,-11864.38437043,0.000349,2]
[314394233,1708272632704,-251.61562957,0.000349,2]
[314394234,1708272632714,-1377.37281913,0.00034931,2]
[314394235,1708272632726,-27.42114487,0.00034931,2]
[314394236,1708272632736,-536.42545191,0.00034931,2]
[314394237,1708272632748,-2995.73576809,0.00034931,2]
[314394238,1708272632757,-4164.817948,0.00034931,2]
[314394239,1708272632767,-151.18,0.00034935,2]
[314394240,1708272632777,-198.05,0.00034966,2]
[314394241,1708272632786,-800.0,0.00035,3]
[314394242,1708272632796,-198.05,0.00035059,2]
[314394243,1708272632806,-769.6,0.0003506,2]
[314394244,1708272632815,-1755.992455,0.00035068,2]
[314394245,1708272632825,-4415.201526,0.00035068,2]
[314394246,1708272632835,-5206.022435,0.00035068,2]
[314394247,1708272632845,-151.18,0.00035118,2]
[314394248,1708272632855,-198.05,0.00035151,2]
[314394249,1708272632865,-198.05,0.00035244,2]
[314394250,1708272632874,-154.31979083,0.000353,2]
[314394251,1708272632884,-151.18,0.00035301,2]
[314394252,1708272632893,-198.05,0.00035337,2]
[314394253,1708272632903,-2458.389437,0.00035342,2]
[314394254,1708272632913,-6181.282136,0.00035342,2]
[314394255,1708272632922,-7288.431409,0.00035342,2]
[314394256,1708272632932,-490.58,0.00035366,2]
[314394257,1708272632941,-198.05,0.0003543,2]
[314394258,1708272632951,-151.0,0.00035431,120]
[314394259,1708272632961,-151.18,0.00035483,2]
[314394260,1708272632974,-198.05,0.00035523,2]
[314394261,1708272632984,-1694.51314385,0.000356,2]
[314394262,1708272632993,-682.84799442,0.000356,2]
[314394263,1708272633003,-198.05,0.00035616,2]
[314394264,1708272633012,-151.18,0.00035666,2]
[314394265,1708272633022,-2852.78914215,0.000357,2]
[314394266,1708272633031,-505.24709432,0.00035765,2]
[314394267,1708272633040,-1492.74,0.00035798,2]
[314394268,1708272633050,-151.18,0.00035849,2]
[314394269,1708272633060,-200.0,0.00035987,2]
[314394270,1708272633069,-166.506,0.00036001,2]
[314394271,1708272633078,-454.0,0.00036001,2]
[314394272,1708272633087,-151.18,0.00036032,2]
[314394273,1708272633097,-150.0,0.00036082,2]
[314394274,1708272633107,-154.31979083,0.000361,2]
[314394275,1708272633117,-150.0,0.0003614,2]
[314394276,1708272633126,-150.0,0.00036146,2]
[314394277,1708272633136,-151.0,0.00036154,30]
[314394278,1708272633145,-2291.0,0.00036171,2]
[314394279,1708272633155,-150.0,0.00036198,2]
[314394280,1708272633164,-300.0,0.000362,9]
[314394281,1708272633173,-151.18,0.00036215,2]
[314394282,1708272633182,-150.0,0.00036224,2]
[314394283,1708272633192,-472.93,0.00036224,2]
[314394284,1708272633201,-150.0,0.00036272,2]
[314394285,1708272633210,-150.0,0.00036322,2]
[314394286,1708272633229,-200.0,0.00036363,2]
[314394287,1708272633243,-150.0,0.00036381,2]
[314394288,1708272633255,-500.0,0.00036388,2]
[314394289,1708272633268,-500.0,0.00036388,2]
[314394290,1708272633280,-500.0,0.00036388,2]
[314394291,1708272633296,-23332.00608062,0.00036389,2]
[314394292,1708272633307,-23332.00608061,0.00036389,2]
[314394293,1708272633317,-23332.00608061,0.00036389,2]
[314394294,1708272633328,-150.0,0.0003639,2]
[314394295,1708272633340,-415.73206,0.0003639,2]
[314394296,1708272633352,-151.18,0.00036398,2]
[314394297,1708272633364,-152.0,0.00036438,4]
[314394298,1708272633376,-1507.1,0.00036462,2]
[314394299,1708272633388,-150.0,0.00036476,2]
[314394300,1708272633400,-150.0,0.00036495,2]
[314394301,1708272633411,-2050.4,0.000365,2]
[314394302,1708272633423,-1750.0,0.000365,10]
[314394303,1708272633437,-3000.0,0.00036563,2]
[314394304,1708272633447,-151.18,0.00036581,2]
[314394305,1708272633457,-150.0,0.00036626,2]
[314394306,1708272633468,-154.57,0.00036639,2]
[314394307,1708272633479,-1189.835,0.00036663,2]
[314394308,1708272633490,-2500.0,0.00036663,2]
[314394309,1708272633501,-155.06881467,0.00036664,8]
[314394310,1708272633512,-3150.7881,0.00036665,2]
[314394311,1708272633522,-211.206,0.00036665,2]
[314394312,1708272633533,-200.0,0.00036666,3]
[314394313,1708272633544,-466.2909,0.00036666,2]
[314394314,1708272633556,-505.24709432,0.00036698,2]
[314394315,1708272633568,-150.1927387,0.00036721,2]
[314394316,1708272633579,-152.53,0.00036753,2]
[314394317,1708272633590,-197060.12642077,0.00036756,2]
[314394318,1708272633917,-81875.02165,0.00036756,2]
[314394319,1708272633931,-780.78081971,0.00036756,2]
[314394320,1708272633944,-1001.00000003,0.00036756,2]
[314394321,1708272633957,-3999.93,0.00036756,2]
[314394322,1708272633977,-1035.37421596,0.00036756,2]
[314394332,1708272637910,-158.44,0.00035976,2]
[314394333,1708272637922,-500.0,0.00036388,2]
[314394334,1708272637933,-158.44,0.00036444,2]
[314394335,1708272637945,-3750.08192823,0.00036756,2]
[314394336,1708272637959,-746.45164787,0.00036756,2]
[314394337,1708272637973,-741.27723955,0.00036756,2]
[314394338,1708272637987,-420.8888349,0.00036756,2]
[314394339,1708272638001,-313.89851893,0.00036756,2]
[314394340,1708272638019,-2010.2646792,0.00036756,2]
[314394371,1708272641370,-500.0,0.00036388,2]
[314394372,1708272641381,-218211.88880646,0.00036756,2]
[314394373,1708272641392,-10410.0874267,0.00036763,2]
[314394374,1708272641635,-2133.13271976,0.00036763,2]
[314394375,1708272641644,-274.79730847,0.00036763,2]
[314394376,1708272641654,-500.0,0.00036763,2]
[314394377,1708272641663,-500.0,0.00036763,2]
[314394378,1708272641907,-611.42484191,0.00036763,2]
[314394379,1708272641923,-500.0,0.00036763,2]
[314394380,1708272641935,-500.0,0.00036763,2]
[314394381,1708272641944,-500.0,0.00036763,2]
[314394382,1708272641953,-500.0,0.00036763,2]
[314394383,1708272641962,-500.0,0.00036763,2]
[314394384,1708272641971,-384.59889475,0.00036763,2]
[314394385,1708272641989,-115.40110525,0.00036763,2]
[314394386,1708272641998,-500.0,0.00036763,2]
[314394387,1708272642007,-63.05397475,0.00036763,2]
[314394388,1708272642019,-411.70564231,0.00036763,2]
[314394391,1708272642879,-480.32693743,0.00036388,2]
[314394392,1708272642891,-19.67306257,0.00036388,2]
[314394393,1708272642900,-25.24038294,0.00036763,2]
[314394394,1708272642910,-500.0,0.00036763,2]
[314394395,1708272642919,-33.65884854,0.00036763,2]
[314394396,1708272642931,-466.34115146,0.00036763,2]
[314394397,1708272642940,-500.0,0.00036763,2]
[314394398,1708272642949,-500.0,0.00036763,2]
[314394399,1708272642958,-500.0,0.00036763,2]
[314394400,1708272642966,-500.0,0.00036763,2]
[314394401,1708272642975,-500.0,0.00036763,2]
[314394402,1708272642985,-500.0,0.00036763,2]
[314394403,1708272642994,-500.0,0.00036763,2]
[314394404,1708272643003,-500.0,0.00036763,2]
[314394405,1708272643012,-500.0,0.00036763,2]
[314394406,1708272643021,-500.0,0.00036763,2]
[314394407,1708272643030,-500.0,0.00036763,2]
[314394408,1708272643039,-500.0,0.00036763,2]
[314394409,1708272643048,-628.53429322,0.00036763,2]
[314394410,1708272643058,-500.0,0.00036763,2]
[314394411,1708272643067,-500.0,0.00036763,2]
[314394412,1708272643077,-500.0,0.00036763,2]
[314394413,1708272643086,-500.0,0.00036763,2]
[314394414,1708272643095,-500.0,0.00036763,2]
[314394415,1708272643104,-500.0,0.00036763,2]
[314394416,1708272643113,-500.0,0.00036763,2]
[314394417,1708272643123,-500.0,0.00036763,2]
[314394418,1708272643132,-500.0,0.00036763,2]
[314394419,1708272643141,-500.0,0.00036763,2]
[314394420,1708272643150,-500.0,0.00036763,2]
[314394421,1708272643159,-249.83982473,0.00036763,2]
[314394422,1708272643168,-619.28,0.00036763,2]
[314394423,1708272643177,-500.0,0.00036763,2]
[314394424,1708272643186,-500.0,0.00036763,2]
[314394425,1708272643195,-500.0,0.00036763,2]
[314394426,1708272643204,-500.0,0.00036763,2]
[314394427,1708272643213,-500.0,0.00036763,2]
[314394428,1708272643222,-500.0,0.00036763,2]
[314394429,1708272643231,-500.0,0.00036763,2]
[314394430,1708272643240,-500.0,0.00036763,2]
[314394431,1708272643249,-1878.51,0.00036763,2]
[314394432,1708272643258,-500.0,0.00036763,2]
[314394433,1708272643267,-500.0,0.00036763,2]
[314394434,1708272643276,-95.50141059,0.00036763,2]
[314394435,1708272643289,-404.49858941,0.00036763,2]
[314394436,1708272643302,-500.0,0.00036763,2]
[314394437,1708272643311,-500.0,0.00036763,2]
[314394439,1708272643320,-500.0,0.00036763,2]
[314394440,1708272643329,-500.0,0.00036763,2]
[314394442,1708272643339,-55.03808358,0.00036763,2]
[314394443,1708272643355,-444.96191642,0.00036763,2]
[314394444,1708272643363,-500.0,0.00036763,2]
[314394445,1708272643374,-500.0,0.00036763,2]
[314394447,1708272643383,-380.07784054,0.00036763,2]
[314394449,1708272643392,-500.0,0.00036763,2]
[314394451,1708272643401,-100.2399302,0.00036763,2]
[314394454,1708272643412,-399.7600698,0.00036763,2]
[314394456,1708272643421,-500.0,0.00036763,2]
[314394458,1708272643430,-213.557388,0.00036763,2]
[314394459,1708272643438,-500.0,0.00036763,2]
[314394461,1708272643448,-292.56638046,0.00036763,2]
[314394465,1708272643468,-207.43361954,0.00036763,2]
[314394467,1708272643478,-500.0,0.00036763,2]
[314394469,1708272643487,-368.0195725,0.00036763,2]
[314394498,1708272646076,-500.0,0.00036388,2]
[314394499,1708272646087,-131.9804275,0.00036763,2]
[314394500,1708272646096,-508.51923099,0.00036763,2]
[314394501,1708272646106,-151.18,0.00036764,2]
[314394502,1708272646115,-1067.34537483,0.00036764,4]
[314394503,1708272646125,-500.0,0.00036764,7]
[314394504,1708272646135,-525.63404789,0.00036764,2]
[314394505,1708272646145,-382.320532,0.00036764,2]
[314394506,1708272646155,-500.0,0.00036764,2]
[314394507,1708272646165,-500.0,0.00036764,2]
[314394508,1708272646174,-500.0,0.00036764,2]
[314394509,1708272646184,-500.0,0.00036764,2]
[314394510,1708272646194,-500.0,0.00036764,2]
[314394511,1708272646203,-500.0,0.00036764,2]
[314394512,1708272646213,-564.32393785,0.00036764,2]
[314394513,1708272646222,-150.0,0.00036764,2]
[314394514,1708272646232,-317.10986073,0.00036764,2]
[314394515,1708272646241,-546.51049633,0.00036764,2]
[314394516,1708272646251,-628.49,0.00036764,2]
[314394517,1708272646261,-639.01839693,0.00036764,2]
[314394518,1708272646271,-644.95,0.00036764,2]
[314394519,1708272646280,-500.0,0.00036764,2]
[314394520,1708272646290,-628.74,0.00036764,2]
[314394521,1708272646302,-457.88633092,0.00036764,2]
[314394522,1708272646311,-594.59,0.00036764,2]
[314394523,1708272646322,-500.0,0.00036764,2]
[314394524,1708272646331,-500.0,0.00036764,2]
[314394525,1708272646341,-500.0,0.00036764,2]
[314394526,1708272646351,-500.0,0.00036764,2]
[314394527,1708272646360,-500.0,0.00036764,2]
[314394528,1708272646371,-500.0,0.00036764,2]
[314394529,1708272646381,-500.0,0.00036764,2]
[314394530,1708272646390,-420.66,0.00036764,2]
[314394531,1708272646399,-500.0,0.00036764,2]
[314394532,1708272646409,-500.0,0.00036764,2]
[314394533,1708272646418,-500.0,0.00036764,2]
[314394534,1708272646427,-500.0,0.00036764,2]
[314394535,1708272646436,-184.38800781,0.00036764,2]
[314394536,1708272646445,-541.89,0.00036764,2]
[314394537,1708272646455,-500.0,0.00036764,2]
[314394538,1708272646464,-500.0,0.00036764,2]
[314394539,1708272646473,-500.0,0.00036764,2]
[314394540,1708272646482,-308.56825711,0.00036764,2]
[314394541,1708272646491,-570.85495615,0.00036764,2]
[314394542,1708272646500,-315.2635305,0.00036764,2]
[314394543,1708272646509,-500.0,0.00036764,2]
[314394544,1708272646518,-500.0,0.00036764,2]
[314394545,1708272646527,-500.0,0.00036764,2]
[314394546,1708272646537,-500.0,0.00036764,2]
[314394547,1708272646546,-500.0,0.00036764,2]
[314394548,1708272646555,-500.0,0.00036764,2]
[314394549,1708272646564,-500.0,0.00036764,2]
[314394550,1708272646573,-500.0,0.00036764,2]
[314394551,1708272646582,-500.0,0.00036764,2]
[314394552,1708272646591,-500.0,0.00036764,2]
[314394553,1708272646601,-500.0,0.00036764,2]
[314394554,1708272646609,-561.53574121,0.00036764,2]
[314394555,1708272646618,-163.17581658,0.00036764,2]
[314394556,1708272646653,-336.82418342,0.00036764,2]
[314394557,1708272646662,-503.61,0.00036764,2]
[314394558,1708272646671,-500.0,0.00036764,2]
[314394559,1708272646681,-500.0,0.00036764,2]
[314394560,1708272646690,-500.0,0.00036764,2]
[314394561,1708272646699,-500.0,0.00036764,2]
[314394562,1708272646709,-500.0,0.00036764,2]
[314394563,1708272646718,-500.0,0.00036764,2]
[314394564,1708272646727,-500.0,0.00036764,2]
[314394565,1708272646736,-536.80415839,0.00036764,2]
[314394566,1708272646745,-511.36777613,0.00036764,2]
[314394567,1708272646754,-378.0449458,0.00036764,2]
[314394568,1708272646763,-536.0688926,0.00036764,2]
[314394569,1708272646773,-516.7381414,0.00036764,2]
[314394570,1708272646781,-500.0,0.00036764,2]
[314394571,1708272646790,-500.0,0.00036764,2]
[314394572,1708272646799,-817.64962032,0.00036764,2]
[314394573,1708272646808,-500.0,0.00036764,2]
[314394574,1708272646818,-513.14849852,0.00036764,2]
[314394575,1708272646826,-500.0,0.00036764,2]
[314394576,1708272646835,-513.66888968,0.00036764,2]
[314394577,1708272646844,-500.0,0.00036764,2]
[314394578,1708272646854,-500.0,0.00036764,2]
[314394579,1708272646862,-500.0,0.00036764,2]
[314394580,1708272646871,-500.0,0.00036764,2]
[314394581,1708272646880,-176.71622785,0.00036764,2]
[314394582,1708272646890,-500.0,0.00036764,2]
[314394583,1708272646899,-500.0,0.00036764,2]
[314394584,1708272646908,-500.0,0.00036764,2]
[314394585,1708272646917,-500.0,0.00036764,2]
[314394586,1708272646926,-500.0,0.00036764,2]
[314394587,1708272646935,-500.0,0.00036764,2]
[314394588,1708272646945,-500.0,0.00036764,2]
[314394589,1708272646955,-500.0,0.00036764,2]
[314394590,1708272646964,-500.0,0.00036764,2]
[314394591,1708272646973,-500.0,0.00036764,2]
[314394592,1708272646983,-450.95125267,0.00036764,2]
[314394593,1708272646992,-500.0,0.00036764,2]
[314394594,1708272647001,-562.38092717,0.00036764,2]
[314394595,1708272647010,-500.0,0.00036764,2]
[314394596,1708272647020,-500.0,0.00036764,2]
[314394597,1708272647029,-500.0,0.00036764,2]
[314394598,1708272647039,-548.15,0.00036764,2]
[314394599,1708272647048,-500.0,0.00036764,2]
[314394600,1708272647058,-500.0,0.00036764,2]
[314394601,1708272647068,-500.0,0.00036764,2]
[314394602,1708272647077,-500.0,0.00036764,2]
[314394603,1708272647086,-500.0,0.00036764,2]
[314394604,1708272647095,-500.0,0.00036764,2]
[314394605,1708272647104,-500.0,0.00036764,2]
[314394606,1708272647113,-500.0,0.00036764,2]
[314394607,1708272647122,-500.0,0.00036764,2]
[314394608,1708272647131,-500.0,0.00036764,2]
[314394609,1708272647140,-598.87312458,0.00036764,2]
[314394610,1708272647149,-526.43234531,0.00036764,2]
[314394611,1708272647158,-500.0,0.00036764,2]
[314394612,1708272647168,-500.0,0.00036764,2]
[314394613,1708272647177,-500.0,0.00036764,2]
[314394614,1708272647186,-500.0,0.00036764,2]
[314394615,1708272647195,-562.54890539,0.00036764,2]
[314394616,1708272647207,-500.0,0.00036764,2]
[314394617,1708272647217,-500.0,0.00036764,2]
[314394618,1708272647226,-500.0,0.00036764,2]
[314394619,1708272647236,-500.0,0.00036764,2]
[314394620,1708272647245,-500.0,0.00036764,2]
[314394621,1708272647255,-594.07784731,0.00036764,2]
[314394622,1708272647264,-500.0,0.00036764,2]
[314394623,1708272647273,-500.0,0.00036764,2]
[314394624,1708272647282,-500.0,0.00036764,2]
[314394625,1708272647293,-500.0,0.00036764,2]
[314394626,1708272647303,-500.0,0.00036764,2]
[314394627,1708272647313,-500.0,0.00036764,2]
[314394628,1708272647322,-500.0,0.00036764,2]
[314394629,1708272647331,-500.0,0.00036764,2]
[314394630,1708272647340,-500.0,0.00036764,2]
[314394631,1708272647350,-500.0,0.00036764,2]
[314394632,1708272647359,-500.0,0.00036764,2]
[314394633,1708272647368,-500.0,0.00036764,2]
[314394634,1708272647379,-573.23709741,0.00036764,2]
[314394635,1708272647389,-607.64999555,0.00036764,2]
[314394636,1708272647398,-500.0,0.00036764,2]
[314394637,1708272647410,-500.0,0.00036764,2]
[314394638,1708272647419,-500.0,0.00036764,2]
[314394639,1708272647428,-500.0,0.00036764,2]
[314394640,1708272647437,-500.0,0.00036764,2]
[314394641,1708272647446,-500.0,0.00036764,2]
[314394642,1708272647456,-500.0,0.00036764,2]
[314394643,1708272647465,-500.0,0.00036764,2]
[314394644,1708272647474,-500.0,0.00036764,2]
[314394645,1708272647483,-534.8065956,0.00036764,2]
[314394646,1708272647493,-500.0,0.00036764,2]
[314394647,1708272647502,-500.0,0.00036764,2]
[314394648,1708272647511,-500.0,0.00036764,2]
[314394649,1708272647520,-500.0,0.00036764,2]
[314394650,1708272647529,-500.0,0.00036764,2]
[314394651,1708272647538,-554.74826276,0.00036764,2]
[314394652,1708272647547,-500.0,0.00036764,2]
[314394653,1708272647556,-500.0,0.00036764,2]
[314394654,1708272647566,-500.0,0.00036764,2]
[314394655,1708272647575,-500.0,0.00036764,2]
[314394656,1708272647584,-500.0,0.00036764,2]
[314394657,1708272647594,-500.0,0.00036764,2]
[314394658,1708272647603,-554.60977088,0.00036764,2]
[314394659,1708272647613,-500.0,0.00036764,2]
[314394660,1708272647622,-500.0,0.00036764,2]
[314394661,1708272647631,-500.0,0.00036764,2]
[314394662,1708272647640,-500.0,0.00036764,2]
[314394663,1708272647650,-500.0,0.00036764,2]
[314394664,1708272647659,-500.0,0.00036764,2]
[314394665,1708272647669,-500.0,0.00036764,2]
[314394666,1708272647678,-500.0,0.00036764,2]
[314394667,1708272647687,-178.70871174,0.00036764,2]
[314394668,1708272647696,-500.0,0.00036764,2]
[314394669,1708272647706,-500.0,0.00036764,2]
[314394670,1708272647715,-500.0,0.00036764,2]
[314394671,1708272647724,-500.0,0.00036764,2]
[314394672,1708272647733,-525.15051235,0.00036764,2]
[314394673,1708272647742,-500.0,0.00036764,2]
[314394674,1708272647751,-500.0,0.00036764,2]
[314394675,1708272647760,-500.0,0.00036764,2]
[314394676,1708272647769,-321.65752929,0.00036764,2]
[314394677,1708272647778,-500.0,0.00036764,2]
[314394678,1708272647787,-500.0,0.00036764,2]
[314394679,1708272647797,-500.0,0.00036764,2]
[314394680,1708272647806,-500.0,0.00036764,2]
[314394681,1708272647816,-500.0,0.00036764,2]
[314394682,1708272647825,-500.0,0.00036764,2]
[314394683,1708272647834,-500.0,0.00036764,2]
[314394684,1708272647843,-500.0,0.00036764,2]
[314394685,1708272647852,-500.0,0.00036764,2]
[314394686,1708272647861,-500.0,0.00036764,2]
[314394687,1708272647870,-5000.0,0.00036765,3]
[314394688,1708272647879,-500.0,0.00036765,2]
[314394689,1708272647889,-379.45038813,0.00036765,2]
[314394690,1708272647898,-181.58261504,0.00036765,2]
[314394691,1708272647907,-894.59422084,0.00036775,2]
[314394692,1708272647916,-200.0,0.00036789,2]
[314394693,1708272647926,-23332.00608061,0.00036795,2]
[314394694,1708272647935,-2809.587928,0.000368,2]
[314394695,1708272648099,-7064.322441,0.000368,2]
[314394696,1708272648108,-162.922951,0.00036845,2]
[314394697,1708272648118,-689.264445,0.00036845,2]
[314394698,1708272648127,-289.262272,0.00036845,2]
[314394699,1708272648137,-500.0,0.00036864,2]
[314394700,1708272648146,-500.0,0.00036865,2]
[314394701,1708272648156,-516.61614484,0.00036865,2]
[314394702,1708272648165,-551.51974185,0.00036865,2]
[314394703,1708272648175,-500.0,0.00036865,2]
[314394704,1708272648184,-500.0,0.00036865,2]
[314394705,1708272648193,-500.0,0.00036865,2]
[314394706,1708272648202,-500.0,0.00036865,2]
[314394707,1708272648212,-500.0,0.00036865,2]
[314394708,1708272648221,-150.0,0.00036865,2]
[314394709,1708272648230,-500.0,0.00036865,2]
[314394710,1708272648239,-150.59016707,0.00036865,2]
[314394711,1708272648248,-218.28771859,0.00036865,2]
[314394712,1708272648257,-576.12799854,0.00036865,2]
[314394713,1708272648266,-500.0,0.00036865,2]
[314394714,1708272648276,-500.0,0.00036865,2]
[314394715,1708272648285,-500.0,0.00036865,2]
[314394716,1708272648296,-500.0,0.00036865,2]
[314394717,1708272648305,-500.0,0.00036865,2]
[314394718,1708272648314,-500.0,0.00036865,2]
[314394719,1708272648324,-500.0,0.00036865,2]
[314394720,1708272648334,-500.0,0.00036865,2]
[314394721,1708272648344,-252.12862226,0.00036865,2]
[314394722,1708272648383,-500.0,0.00036865,2]
[314394723,1708272648392,-500.0,0.00036865,2]
[314394724,1708272648401,-500.0,0.00036865,2]
[314394725,1708272648410,-500.0,0.00036865,2]
[314394726,1708272648419,-500.0,0.00036865,2]
[314394727,1708272648428,-500.0,0.00036865,2]
[314394728,1708272648437,-500.0,0.00036865,2]
[314394729,1708272648446,-460.38723053,0.00036865,2]
[314394730,1708272648456,-500.0,0.00036865,2]
[314394731,1708272648465,-500.0,0.00036865,2]
[314394732,1708272648474,-500.0,0.00036865,2]
[314394733,1708272648483,-500.0,0.00036865,2]
[314394734,1708272648492,-500.0,0.00036865,2]
[314394735,1708272648501,-500.0,0.00036865,2]
[314394736,1708272648510,-500.0,0.00036865,2]
[314394737,1708272648519,-500.0,0.00036865,2]
[314394738,1708272648528,-534.47091792,0.00036865,2]
[314394739,1708272648537,-500.0,0.00036865,2]
[314394740,1708272648546,-500.0,0.00036865,2]
[314394741,1708272648555,-500.0,0.00036865,2]
[314394742,1708272648564,-500.0,0.00036865,2]
[314394743,1708272648573,-500.0,0.00036865,2]
[314394744,1708272648582,-500.0,0.00036865,2]
[314394745,1708272648591,-538.91372198,0.00036865,2]
[314394746,1708272648600,-501.58069433,0.00036865,2]
[314394747,1708272648609,-577.42,0.00036865,2]
[314394748,1708272648618,-546.86079888,0.00036865,2]
[314394749,1708272648627,-576.58370039,0.00036865,2]
[314394750,1708272648636,-500.0,0.00036865,2]
[314394751,1708272648645,-500.0,0.00036865,2]
[314394752,1708272648653,-500.0,0.00036865,2]
[314394753,1708272648662,-500.0,0.00036865,2]
[314394754,1708272648671,-520.07938524,0.00036865,2]
[314394755,1708272648680,-500.0,0.00036865,2]
[314394756,1708272648689,-500.0,0.00036865,2]
[314394757,1708272648699,-419.76845481,0.00036865,2]
[314394758,1708272648708,-500.0,0.00036865,2]
[314394759,1708272648717,-500.0,0.00036865,2]
[314394760,1708272648726,-500.0,0.00036865,2]
[314394761,1708272648734,-500.0,0.00036865,2]
[314394762,1708272648744,-500.0,0.00036865,2]
[314394763,1708272648753,-500.0,0.00036865,2]
[314394764,1708272648762,-500.0,0.00036865,2]
[314394765,1708272648771,-549.45562032,0.00036865,2]
[314394766,1708272648781,-500.0,0.00036865,2]
[314394767,1708272648789,-500.0,0.00036865,2]
[314394768,1708272648799,-500.0,0.00036865,2]
[314394769,1708272648808,-546.96584983,0.00036865,2]
[314394770,1708272648816,-500.0,0.00036865,2]
[314394771,1708272648825,-588.16523353,0.00036865,2]
[314394772,1708272648834,-610.28823413,0.00036865,2]
[314394773,1708272648843,-500.0,0.00036865,2]
[314394774,1708272648852,-370.0,0.00036865,2]
[314394775,1708272648861,-500.0,0.00036865,2]
[314394776,1708272648870,-500.0,0.00036865,2]
[314394777,1708272648879,-500.0,0.00036865,2]
[314394778,1708272648888,-500.0,0.00036865,2]
[314394779,1708272648897,-500.0,0.00036865,2]
[314394780,1708272648906,-500.0,0.00036865,2]
[314394781,1708272648915,-500.0,0.00036865,2]
[314394782,1708272648925,-500.0,0.00036865,2]
[314394783,1708272648934,-500.0,0.00036865,2]
[314394784,1708272648943,-500.0,0.00036865,2]
[314394785,1708272648953,-500.0,0.00036865,2]
[314394786,1708272648962,-444.79095048,0.00036865,2]
[314394787,1708272648972,-570.79754287,0.00036865,2]
[314394788,1708272648981,-500.0,0.00036865,2]
[314394789,1708272648990,-500.0,0.00036865,2]
[314394790,1708272649000,-500.0,0.00036865,2]
[314394791,1708272649010,-500.0,0.00036865,2]
[314394792,1708272649019,-500.0,0.00036865,2]
[314394793,1708272649029,-500.0,0.00036865,2]
[314394794,1708272649038,-500.0,0.00036865,2]
[314394795,1708272649048,-500.0,0.00036865,2]
[314394796,1708272649057,-500.0,0.00036865,2]
[314394797,1708272649067,-500.0,0.00036865,2]
[314394798,1708272649077,-500.0,0.00036865,2]
[314394799,1708272649086,-500.0,0.00036865,2]
[314394800,1708272649096,-500.0,0.00036865,2]
[314394801,1708272649106,-500.0,0.00036865,2]
[314394802,1708272649115,-153.01650458,0.00036865,2]
[314394803,1708272649125,-500.0,0.00036865,2]
[314394804,1708272649134,-500.0,0.00036865,2]
[314394805,1708272649143,-333.39756531,0.00036865,2]
[314394806,1708272649153,-500.0,0.00036865,2]
[314394807,1708272649162,-500.0,0.00036865,2]
[314394808,1708272649171,-500.0,0.00036865,2]
[314394809,1708272649181,-500.0,0.00036865,2]
[314394810,1708272649190,-500.0,0.00036865,2]
[314394811,1708272649200,-500.0,0.00036865,2]
[314394812,1708272649210,-500.0,0.00036865,2]
[314394813,1708272649220,-455.90536595,0.00036865,2]